fUSD/lending_fUSD_20260116
["ID","MTS","AMOUNT","RATE_DAILY","PERIOD"]
[402117014,1768528233113,-1000.0,0.00015947,2]
[402117015,1768528233122,-1000.0,0.00015947,2]
[402117016,1768528233131,-1000.0,0.00015947,2]
[402117017,1768528233140,-1000.0,0.00015947,2]
[402117018,1768528233148,-1000.0,0.00015947,2]
[402117019,1768528233158,-1000.0,0.00015947,2]
[402117020,1768528233166,-1000.0,0.00015947,2]
[402117021,1768528233175,-1000.0,0.00015947,2]
[402117022,1768528233184,-1000.0,0.00015947,2]
[402117023,1768528233193,-1000.0,0.00015947,2]
[402117024,1768528233202,-1000.0,0.00015947,2]
[402117025,1768528233212,-1000.0,0.00015947,2]
[402117026,1768528233222,-250.941,0.00015947,2]
[402117027,1768528233231,-419.0,0.0001598,2]
[402117028,1768528233241,-7692.49587584,0.00015996,2]
[402117029,1768528233255,-540.0208672,0.00015996,2]
[402117030,1768528233274,-2850.15,0.00015996,2]
[402117031,1768528233321,-1490.50948365,0.00015996,2]
[402117032,1768528233854,500.0,0.00014754,2]
[402117033,1768528237593,-690.21882825,0.00015996,2]
[402117034,1768528237604,-6151.58806481,0.00015996,2]
[402117035,1768528237614,-895.77741349,0.00015996,2]
[402117036,1768528237626,-16325.78402358,0.00015996,2]
[402117037,1768528237635,-195.0,0.00016028,2]
[402117038,1768528237644,-5074.53355401,0.00016028,2]
[402117039,1768528237653,-338.19553929,0.00016028,2]
[402117040,1768528237663,-302.35947012,0.00016028,2]
[402117041,1768528237672,-2500.0,0.00016028,2]
[402117042,1768528237681,-193.0,0.00016028,2]
[402117043,1768528237691,-419.0,0.00016035,2]
[402117044,1768528237700,-500.0,0.00016082,2]
[402117045,1768528237709,-419.0,0.0001609,2]
[402117046,1768528237719,-419.0,0.00016144,2]
[402117047,1768528237728,-419.0,0.00016199,2]
[402117048,1768528237738,-150.0,0.000162,2]
[402117049,1768528237748,-166.7,0.00016208,2]
[402117050,1768528237757,-1466.98,0.00016213,2]
[402117051,1768528237766,-150.0,0.00016253,2]
[402117052,1768528237775,-419.0,0.00016254,2]
[402117053,1768528237785,-1324.82797394,0.0001628,2]
[402117054,1768528237794,-150.0,0.00016306,2]
[402117055,1768528237803,-419.0,0.00016309,2]
[402117056,1768528237813,-1680.0,0.00016337,2]
[402117057,1768528237823,-300.73444003,0.00016337,2]
[402117058,1768528237832,-193.55917639,0.00016337,2]
[402117059,1768528237842,-295.2260759,0.00016338,2]
[402117060,1768528237854,-195.0,0.00016338,2]
[402117061,1768528237863,-150.0,0.00016359,2]
[402117062,1768528237873,-419.0,0.00016364,2]
[402117063,1768528237882,-19414.98311975,0.00016376,2]
[402117064,1768528237893,-17221.56143707,0.00016376,2]
[402117065,1768528237902,-150.0,0.00016412,2]
[402117066,1768528237911,-419.0,0.00016418,2]
[402117067,1768528237923,-500.0,0.00016437,2]
[402117068,1768528237932,-500.0,0.00016437,2]
[402117069,1768528237942,-500.0,0.00016437,2]
[402117070,1768528237952,-815.0,0.00016438,2]
[402117071,1768528237962,-165.19,0.0001644,2]
[402117073,1768528237971,-150.0,0.00016465,2]
[402117075,1768528237981,-419.0,0.00016473,2]
[402117077,1768528237990,-1466.98,0.00016487,2]
[402117079,1768528237999,-801.83430165,0.000165,2]
[402117080,1768528238009,-1000.0,0.00016515,2]
[402117081,1768528238018,-150.0,0.00016518,2]
[402117082,1768528238027,-419.0,0.00016528,2]
[402117083,1768528238036,-150.0,0.00016571,2]
[402117084,1768528238045,-419.0,0.00016583,2]
[402117085,1768528238054,-150.0,0.00016624,2]
[402117086,1768528238066,-419.0,0.00016638,2]
[402117087,1768528238075,-150.0,0.00016676,2]
[402117088,1768528238083,-419.0,0.00016692,2]
[402117089,1768528238093,-166.33,0.00016712,2]
[402117090,1768528238102,-150.0,0.00016729,2]
[402117091,1768528238111,-419.0,0.00016747,2]
[402117092,1768528238119,-19414.98311975,0.00016757,2]
[402117093,1768528238129,-17221.56143707,0.00016757,2]
[402117094,1768528238138,-1466.98,0.00016761,2]
[402117095,1768528238148,-150.0,0.00016782,2]
[402117096,1768528238157,-419.0,0.00016802,2]
[402117098,1768528238166,-150.0,0.00016835,2]
[402117099,1768528238176,-419.0,0.00016857,2]
[402117101,1768528238185,-150.0,0.00016888,2]
[402117103,1768528238195,-433.0,0.00016892,2]
[402117105,1768528238204,-1000.0,0.00016902,2]
[402117107,1768528238213,-419.0,0.00016911,2]
[402117109,1768528238223,-150.99,0.00016922,2]
[402117111,1768528238233,-9999.99,0.00016922,2]
[402117113,1768528238243,-7105.05,0.00016922,2]
[402117115,1768528238252,-3130.7,0.00016922,2]
[402117117,1768528238261,-1981.34,0.00016922,2]
[402117119,1768528238270,-3260.74,0.00016922,2]
[402117121,1768528238279,-2777.9,0.00016922,2]
[402117123,1768528238289,-500.0,0.00016938,2]
[402117125,1768528238298,-150.0,0.00016941,2]
[402117127,1768528238307,-434.2533444,0.00016966,2]
[402117129,1768528238317,-501.71080887,0.00016973,2]
[402117131,1768528238326,-500.0,0.00016973,2]
[402117133,1768528238335,-500.0,0.00016973,2]
[402117135,1768528238345,-500.0,0.00016973,2]
[402117137,1768528238355,-500.0,0.00016973,2]
[402117139,1768528238365,-224.94641942,0.00016973,2]
[402117141,1768528238375,-501.90797611,0.00016973,2]
[402117173,1768528238668,-500.0,0.00016973,2]
[402117175,1768528238678,-500.0,0.00016973,2]
[402117177,1768528238688,-500.0,0.00016973,2]
[402117179,1768528238698,-500.0,0.00016973,2]
[402117180,1768528238707,-500.0,0.00016973,2]
[402117182,1768528238717,-500.0,0.00016973,2]
[402117184,1768528238727,-500.0,0.00016973,2]
[402117186,1768528238736,-500.0,0.00016973,2]
[402117188,1768528238746,-500.0,0.00016973,2]
[402117190,1768528238756,-500.0,0.00016973,2]
[402117192,1768528238766,-500.0,0.00016973,2]
[402117195,1768528238777,-4930.0,0.00016982,2]
[402117197,1768528238786,-150.0,0.00016994,2]
[402117199,1768528238796,-250.0,0.00017,2]
[402117201,1768528238805,-1466.98,0.00017035,2]
[402117203,1768528238815,-150.0,0.00017047,2]
[402117205,1768528238824,-150.0,0.000171,2]
[402117207,1768528238835,-1000.0,0.00017112,2]
[402117209,1768528238845,-19414.98311975,0.00017138,2]
[402117211,1768528238859,-17221.56143707,0.00017138,2]
[402117213,1768528238869,-150.0,0.00017153,2]
[402117215,1768528238878,-1324.82797394,0.00017184,2]
[402117217,1768528238888,-220.48922227,0.00017197,7]
[402117219,1768528238898,-388.96912351,0.00017197,7]
[402117221,1768528238908,-581.87454605,0.00017197,7]
[402117223,1768528238917,-787.2876,0.00017197,7]
[402117224,1768528238928,-150.0,0.00017206,2]
[402117227,1768528238938,-150.0,0.00017259,2]
[402117229,1768528238948,-1466.98,0.00017309,2]
[402117230,1768528238957,-150.0,0.00017312,2]
[402117233,1768528238967,-947.0,0.00017332,2]
[402117234,1768528238977,-587.0,0.00017352,2]
[402117236,1768528238986,-150.0,0.00017365,2]
[402117238,1768528238997,-150.0,0.00017418,2]
[402117240,1768528239017,-150.0,0.00017471,2]
[402117242,1768528239036,-19414.98311975,0.00017519,2]
[402117244,1768528239047,-17221.56143707,0.00017519,2]
[402117246,1768528239059,-1000.0,0.00017521,2]
[402117248,1768528239074,-1000.0,0.00017521,2]
[402117250,1768528239090,-501.67737325,0.00017521,2]
[402117252,1768528239100,-500.85523386,0.00017521,2]
[402117254,1768528239110,-1000.0,0.00017521,2]
[402117256,1768528239121,-1081.30772124,0.00017521,2]
[402117258,1768528239132,-1000.0,0.00017521,2]
[402117260,1768528239142,-1000.0,0.00017521,2]
[402117262,1768528239152,-1000.0,0.00017521,2]
[402117264,1768528239162,-1000.0,0.00017521,2]
[402117266,1768528239172,-505.60752266,0.00017521,2]
[402117268,1768528239183,-1000.0,0.00017521,2]
[402117270,1768528239192,-1000.0,0.00017521,2]
[402117272,1768528239204,-1000.0,0.00017521,2]
[402117274,1768528239216,-508.21036482,0.00017521,2]
[402117276,1768528239226,-150.0,0.00017524,2]
[402117278,1768528239238,-150.0,0.00017576,2]
[402117280,1768528239251,-1466.98,0.00017583,2]
[402117282,1768528239260,-947.0,0.00017602,2]
[402117284,1768528239271,-947.0,0.00017627,2]
[402117286,1768528239282,-150.0,0.00017629,2]
[402117288,1768528239291,-947.0,0.00017678,2]
[402117291,1768528239302,-150.0,0.00017682,2]
[402117293,1768528239313,-947.0,0.00017687,2]
[402117295,1768528239323,-5888.0,0.00017697,2]
[402117297,1768528239332,-947.0,0.00017701,2]
[402117299,1768528239343,-1000.0,0.00017709,2]
[402117301,1768528239354,-150.0,0.00017735,2]
[402117303,1768528239364,-150.0,0.00017788,2]
[402117305,1768528239375,-947.0,0.00017806,2]
[402117307,1768528239386,-947.0,0.00017813,2]
[402117309,1768528239395,-457.42281,0.0001782,2]
[402117311,1768528239406,-457.42281,0.0001782,2]
[402117313,1768528239417,-500.0,0.0001783,2]
[402117315,1768528239426,-947.0,0.00017839,2]
[402117317,1768528239435,-150.0,0.00017841,2]
[402117319,1768528239445,-947.0,0.00017851,2]
[402117321,1768528239454,-200.0,0.00017856,2]
[402117323,1768528239463,-1466.98,0.00017857,2]
[402117325,1768528239474,-223.04352076,0.00017888,2]
[402117327,1768528239484,-150.0,0.00017894,2]
[402117329,1768528239495,-19414.98311975,0.000179,2]
[402117331,1768528239504,-17221.56143707,0.000179,2]
[402117333,1768528239513,-3441.83368473,0.000179,2]
[402117335,1768528239522,-172.16529111,0.000179,2]
[402117337,1768528239531,-947.0,0.00017923,2]
[402117339,1768528239541,-150.0,0.00017947,2]
[402117341,1768528239550,-2351.0,0.00017971,2]
[402117343,1768528239559,-500.0,0.00017973,2]
[402117345,1768528239567,-150.11648108,0.00017973,2]
[402117346,1768528239577,-500.0,0.00017973,2]
[402117348,1768528239586,-500.0,0.00017973,2]
[402117350,1768528239595,-500.0,0.00017973,2]
[402117352,1768528239605,-500.0,0.00017973,2]
[402117354,1768528239615,-500.0,0.00017973,2]
[402117356,1768528239624,-500.0,0.00017973,2]
[402117358,1768528239634,-150.0,0.00017973,2]
[402117360,1768528239643,-500.0,0.00017973,2]
[402117362,1768528239652,-500.0,0.00017973,2]
[402117364,1768528239661,-500.0,0.00017973,2]
[402117366,1768528239670,-500.0,0.00017973,2]
[402117368,1768528239680,-500.0,0.00017973,2]
[402117370,1768528239689,-321.9015735,0.00017973,2]
[402117372,1768528239698,-500.0,0.00017973,2]
[402117374,1768528239708,-500.0,0.00017973,2]
[402117376,1768528239717,-500.95019025,0.00017973,2]
[402117378,1768528239726,-500.0,0.00017973,2]
[402117380,1768528239736,-500.0,0.00017973,2]
[402117382,1768528239745,-500.0,0.00017973,2]
[402117384,1768528239754,-500.0,0.00017973,2]
[402117386,1768528239764,-500.0,0.00017973,2]
[402117388,1768528239784,-500.0,0.00017973,2]
[402117390,1768528239795,-513.41184225,0.00017973,2]
[402117392,1768528239805,-500.0,0.00017973,2]
[402117394,1768528239814,-500.35948788,0.00017973,2]
[402117396,1768528239824,-500.0,0.00017973,2]
[402117398,1768528239834,-500.0,0.00017973,2]
[402117400,1768528239843,-500.0,0.00017973,2]
[402117402,1768528239857,-500.53703285,0.00017973,2]
[402117404,1768528239866,-500.0,0.00017973,2]
[402117406,1768528239883,-500.0,0.00017973,2]
[402117408,1768528239904,-947.0,0.00017987,2]
[402117410,1768528239927,-947.0,0.00017988,2]
[402117412,1768528239949,-757.59981737,0.0001799,2]
[402117414,1768528239962,-757.59981737,0.0001799,2]
[402117416,1768528239974,-757.59981737,0.0001799,2]
[402117418,1768528239983,-165.19,0.0001799,2]
[402117420,1768528239993,-216.4540412,0.00017998,2]
[402117422,1768528240002,-500.0,0.00017998,2]
[402117423,1768528240011,-500.0,0.00017998,2]
[402117425,1768528240020,-37186.93308788,0.00017998,7]
[402117427,1768528240029,-500.0,0.00017998,2]
[402117429,1768528240042,-155.694,0.00017999,2]
[402117431,1768528240053,-500.0,0.00017999,2]
[402117433,1768528240064,-500.0,0.00017999,2]
[402117435,1768528240075,-300.0,0.00017999,2]
[402117437,1768528240085,-500.0,0.00017999,2]
[402117439,1768528240095,-500.0,0.00017999,2]
[402117441,1768528240106,-500.0,0.00017999,2]
[402117443,1768528240117,-515.59692643,0.00017999,2]
[402117446,1768528240127,-500.0,0.00017999,2]
[402117447,1768528240136,-263.09929564,0.00017999,2]
[402117449,1768528240145,-500.0,0.00017999,2]
[402117451,1768528240155,-500.0,0.00017999,3]
[402117453,1768528240164,-500.0,0.00017999,4]
[402117455,1768528240173,-500.0,0.00017999,2]
[402117457,1768528240183,-500.0,0.00017999,2]
[402117459,1768528240192,-500.0,0.00017999,2]
[402117461,1768528240202,-500.0,0.00017999,2]
[402117463,1768528240211,-509.0305839,0.00017999,2]
[402117465,1768528240220,-308.44597563,0.00017999,2]
[402117467,1768528240230,-178.4154449,0.00018,2]
[402117469,1768528240240,-2169987.59959607,0.00018,2]
[402117472,1768528240254,-1427.62306441,0.00018,2]
[402117474,1768528240266,-933.13714092,0.00018,2]
[402117480,1768528240316,500.0,0.00014671,2]
[402117565,1768528241158,-1.7e-07,0.00015035,2]
[402117684,1768528242532,-414.11119063,0.00015035,2]
[402117701,1768528242658,-85.8888092,0.00015035,2]
[402117703,1768528242668,-530.74385333,0.00015043,2]
[402117705,1768528242679,-151.0,0.00015753,2]
[402117707,1768528242689,-104.62851743,0.00015753,2]
[402117730,1768528242903,-46.37148257,0.00015753,2]
[402117732,1768528242912,-1142.24862265,0.000179,2]
[402117781,1768528243387,-94.29356641,0.000179,2]
[402117783,1768528243396,-831.62334339,0.00018,2]
[402117785,1768528243407,-729.25294462,0.00018,2]
[402117992,1768528245563,-1110.06940007,0.000179,2]
[402118000,1768528245632,-1984.4714336,0.000179,2]
[402118003,1768528245644,-108.29058539,0.000179,2]
[402118005,1768528245654,-2079.41122948,0.00018,2]
[402118007,1768528245665,-1362.65454814,0.00018,2]
[402118066,1768528246238,-19056.80752848,0.00018,2]
[402118072,1768528246277,-18814.53096333,0.00018,2]
[402118192,1768528253904,-2902.13791725,0.00015321,2]
[402118193,1768528275289,600.0,0.0003013,120]
[402118194,1768528300312,289.39001262,0.00014571,2]
[402118195,1768528315825,500.0,0.00014671,2]
[402118196,1768528316062,500.0,0.00015035,2]
[402118197,1768528316294,500.0,0.00015043,2]
[402118198,1768528316522,528.31412043,0.00015043,2]
[402118199,1768528366787,500.0,0.00014571,2]
[402118200,1768528367017,500.0,0.00014571,2]
[402118201,1768528367246,500.0,0.00014571,2]
[402118202,1768528378715,-515.59692643,0.00015392,2]
[402118203,1768528403426,500.0,0.00014571,2]
[402118204,1768528403689,263.09929564,0.00014571,2]
[402118206,1768528496232,500.0,0.00015144,2]
[402118207,1768528502900,500.0,0.00014571,2]
[402118208,1768528504324,504.590325,0.00014571,2]
[402118209,1768528505609,162.09,0.00028596,120]
[402118210,1768528506054,500.0,0.00014571,2]
[402118211,1768528506271,500.0,0.00014571,2]
[402118212,1768528506493,500.0,0.00014571,2]
[402118213,1768528520882,500.0,0.00014571,2]
[402118214,1768528521113,582.07232141,0.00014571,2]
[402118215,1768528540006,500.0,0.00014571,2]
[402118216,1768528540227,500.0,0.00014571,2]
[402118217,1768528549447,500.0,0.00014671,2]
[402118218,1768528549730,500.0,0.00015035,2]
[402118219,1768528550051,500.0,0.00015043,2]
[402118220,1768528550679,500.0,0.00015043,2]
[402118221,1768528550747,500.0,0.00015043,2]
[402118222,1768528551007,594.61669288,0.00015043,2]
[402118223,1768528569747,500.0,0.00015043,2]
[402118224,1768528569971,500.0,0.00015043,3]
[402118225,1768528570191,500.0,0.00015043,4]
[402118226,1768528570421,500.0,0.00015043,5]
[402118227,1768528570648,500.0,0.00015043,6]
[402118228,1768528570894,500.0,0.00015043,7]
[402118229,1768528571261,500.0,0.00015043,8]
[402118230,1768528571489,500.0,0.00015928,9]
[402118231,1768528571717,500.0,0.00015999,10]
[402118232,1768528618379,600.0,0.0003013,120]
[402118233,1768528639421,528.10956924,0.00014571,2]
[402118237,1768528722131,2777.25,8.161e-05,2]
[402118238,1768528722368,2777.25,8.59e-05,2]
[402118239,1768528722566,2777.25,9.02e-05,2]
[402118240,1768528722887,640.15043076,9.449e-05,2]
[402118241,1768528722910,2137.09956924,9.449e-05,2]
[402118242,1768528723079,2777.25,9.879e-05,2]
[402118243,1768528723283,2777.25,0.00010308,2]
[402118244,1768528723493,2308.41043076,0.00010738,2]
[402118245,1768528723516,468.83956924,0.00010738,2]
[402118246,1768528723900,2777.25,0.00011167,2]
[402118247,1768528724123,2777.25,0.00011597,2]
[402118248,1768528724330,2777.25,0.00012026,2]
[402118249,1768528724533,1199.42043076,0.00012456,2]
[402118250,1768528724555,1577.82956924,0.00012456,2]
[402118251,1768528724738,2777.25,0.00012885,2]
[402118252,1768528725350,2777.25,0.00013315,2]
[402118253,1768528725480,2777.25,0.00013744,2]
[402118254,1768528725572,90.43043076,0.00014174,2]
[402118255,1768528725595,2686.81956924,0.00014174,2]
[402118256,1768528725771,2777.25,0.00014603,2]
[402118257,1768528726049,2777.25,0.00015033,2]
[402118259,1768528776693,500.0,0.00014571,2]
[402118260,1768528776983,507.89334507,0.00014571,2]
[402118261,1768528821667,197.94498683,0.00029608,120]
[402118262,1768528829939,454.5983,0.00030136,120]
[402118263,1768528835698,4233.1446919,0.000301,120]
[402118264,1768528849271,500.0,0.00014571,2]
[402118265,1768528849523,250.79708569,0.00014571,2]
[402118266,1768528849546,249.20291431,0.00014571,2]
[402118267,1768528857941,279.61657416,0.00015033,2]
[402118268,1768528894029,166.66,0.0001514,2]
[402118269,1768528916749,500.0,0.00014571,2]
[402118270,1768528941400,500.0,0.00014671,2]
[402118271,1768528941636,500.0,0.00015035,2]
[402118272,1768528942596,500.0,0.00015043,2]
[402118273,1768528942689,231.70849186,0.00015043,2]
[402118274,1768528943360,500.0,0.00014571,2]
[402118275,1768528943593,500.0,0.00014571,2]
[402118276,1768528943854,500.0,0.00014571,2]
[402118277,1768528944075,509.0305839,0.00015392,2]
[402118278,1768528985808,500.0,0.00014571,2]
[402118279,1768528986032,500.0,0.00014571,2]
[402118280,1768528986269,500.0,0.00014571,2]
[402118281,1768528986490,500.0,0.00015392,2]
[402118282,1768528995828,600.0,0.0003013,120]
[402118283,1768529003186,1185.99041968,0.00015361,2]
[402118284,1768529018332,500.0,0.00014571,2]
[402118285,1768529018598,500.0,0.00014571,2]
[402118286,1768529024288,500.0,0.00014571,2]
[402118287,1768529024516,377.80101609,0.00014571,2]
[402118288,1768529024538,122.19898391,0.00014571,2]
[402118289,1768529042353,210.68,0.00012446,2]
[402118290,1768529042561,210.68,0.00013691,2]
[402118291,1768529042767,210.68,0.00014935,2]
[402118292,1768529081041,500.0,0.00015375,2]
[402118293,1768529158692,151.0,0.00015392,2]
[402118294,1768529159137,151.69568122,0.00015392,2]
[402118295,1768529164844,500.0,0.00014571,2]
[402118296,1768529165091,500.0,0.00014571,2]
[402118297,1768529165357,500.0,0.00014571,2]
[402118298,1768529198108,-166.66,0.00015459,2]
[402118299,1768529198132,-193.55917639,0.0001546,2]
[402118300,1768529198155,-195.0,0.0001546,2]
[402118301,1768529198176,-250.0,0.0001546,2]
[402118302,1768529198198,-279.0,0.00015462,2]
[402118303,1768529198222,-473.62467353,0.00015462,2]
[402118304,1768529206955,500.0,0.00014571,2]
[402118305,1768529207447,500.0,0.00014571,3]
[402118306,1768529207672,500.0,0.00014571,4]
[402118307,1768529306189,500.0,0.00014571,2]
[402118308,1768529306429,500.0,0.00014571,2]
[402118309,1768529306671,500.0,0.00014571,2]
[402118310,1768529307709,500.0,0.00015392,2]
[402118311,1768529318477,600.0,0.0003013,120]
[402118312,1768529319638,1017.15,0.00030136,120]
[402118313,1768529325770,1000.0,0.00030136,120]
[402118314,1768529345989,4443.07533487,0.00015213,2]
[402118315,1768529346010,10000.01,0.00015213,2]
[402118316,1768529346032,10000.01,0.00015213,2]
[402118317,1768529346055,10000.01,0.00015213,2]
[402118318,1768529346077,8585.07466513,0.00015213,2]
[402118320,1768529399744,1414.93533487,0.00012461,2]
[402118321,1768529399768,6356.00466513,0.00012461,2]
[402118328,1768529431642,-301.93158749,0.00015403,2]
[402118330,1768529431652,-98.06841251,0.00015407,2]
[402118331,1768529431664,-1795.87837037,0.00015407,2]
[402118332,1768529431675,-1060.96053958,0.00015407,2]
[402118333,1768529431736,-1318.96267754,0.00015407,2]
[402118334,1768529431747,-2303.62532647,0.00015462,2]
[402118335,1768529431756,-250.0,0.00015503,2]
[402118336,1768529431766,-1200.0,0.00015542,2]
[402118337,1768529431776,-1048.68,0.00015543,2]
[402118338,1768529431786,-301.93158747,0.00015598,2]
[402118339,1768529431795,-555.88,0.00015706,2]
[402118340,1768529431804,-166.66,0.00015778,2]
[402118341,1768529431814,-1200.0,0.00015791,2]
[402118342,1768529431823,-11360.53987521,0.00015792,2]
[402118343,1768529431832,-301.93158747,0.00015792,2]
[402118344,1768529431842,-300.0,0.00015832,2]
[402118345,1768529431851,-3260.74,0.00015833,2]
[402118346,1768529431860,-9999.99,0.00015833,2]
[402118347,1768529431870,-999.99,0.00015833,2]
[402118348,1768529431879,-53159.83537402,0.00015834,2]
[402118349,1768529431890,-533.34640399,0.00015834,2]
[402118350,1768529431902,-522.90611704,0.00015834,2]
[402118356,1768529431978,-375.12799992,0.00015834,2]
[402118357,1768529431989,-372.51000098,0.00015834,2]
[402118359,1768529432000,-543.35374414,0.00015834,2]
[402118361,1768529432011,-1413.25471627,0.00015834,2]
[402118364,1768529432023,-657.58326595,0.00015834,2]
[402118366,1768529432034,-653.0,0.00015834,2]
[402118376,1768529432114,-4246.2571789,0.00015834,2]
[402118378,1768529432125,-835.60817854,0.00015834,2]
[402118385,1768529432188,-3673.29706504,0.00015834,2]
[402118388,1768529432199,-503.33386038,0.00015834,2]
[402118390,1768529432211,-7597.77658625,0.00015834,2]
[402118519,1768529437783,-1339.54531609,0.00015834,2]
[402118520,1768529437796,-2561.05922119,0.00015834,2]
[402118521,1768529437808,-469.58951075,0.00015834,2]
[402118522,1768529437819,-3742.98733231,0.00015834,2]
[402118523,1768529437831,-19978.56873729,0.00015834,2]
[402118524,1768529437864,-6348.90084719,0.00015834,2]
[402118525,1768529437876,-53040.11854376,0.00015834,2]
[402118526,1768529437885,-733.40410365,0.00015892,2]
[402118527,1768529437896,-2043.84589635,0.00015892,2]
[402118528,1768529437906,-3195.3,0.0001596,2]
[402118529,1768529437917,-299.99,0.0001596,2]
[402118530,1768529437927,-1981.34,0.0001596,2]
[402118531,1768529437936,-3130.7,0.0001596,2]
[402118532,1768529437947,-2777.9,0.0001596,2]
[402118533,1768529437957,-7105.05,0.0001596,2]
[402118534,1768529437967,-500.0,0.00016025,2]
[402118535,1768529437976,-612.06328741,0.00016025,2]
[402118536,1768529437985,-500.0,0.00016025,2]
[402118537,1768529437996,-500.0,0.00016025,2]
[402118538,1768529438005,-500.0,0.00016025,2]
[402118539,1768529438015,-500.0,0.00016025,2]
[402118540,1768529438024,-500.0,0.00016025,2]
[402118541,1768529438034,-11360.53987521,0.00016026,2]
[402118542,1768529438043,-9444.54,0.00016096,2]
[402118543,1768529438054,-150.99,0.00016096,2]
[402118544,1768529438063,-166.66,0.00016096,2]
[402118545,1768529438072,-210.68,0.0001618,2]
[402118546,1768529438081,-11360.53987521,0.0001626,2]
[402118547,1768529438091,-1048.68,0.0001632,2]
[402118548,1768529438100,-2777.25,0.00016321,2]
[402118549,1768529438109,-166.66,0.00016415,2]
[402118550,1768529438118,-150.0,0.00016417,2]
[402118551,1768529438127,-500.0,0.00016437,2]
[402118552,1768529438136,-500.0,0.00016437,5]
[402118553,1768529438145,-591.69826684,0.00016438,2]
[402118554,1768529438154,-591.69826684,0.00016438,2]
[402118555,1768529438163,-591.69826684,0.00016438,2]
[402118556,1768529438175,-591.69826684,0.00016438,2]
[402118557,1768529438184,-591.69826684,0.00016438,2]
[402118558,1768529438194,-591.69826684,0.00016438,2]
[402118559,1768529438203,-591.69826684,0.00016438,2]
[402118560,1768529438212,-591.69826684,0.00016438,2]
[402118561,1768529438222,-591.69826684,0.00016438,2]
[402118562,1768529438231,-591.69826684,0.00016438,2]
[402118563,1768529438240,-591.69826684,0.00016438,2]
[402118564,1768529438251,-591.69826684,0.00016438,2]
[402118565,1768529438260,-591.69826684,0.00016438,2]
[402118566,1768529438269,-591.69826684,0.00016438,2]
[402118567,1768529438278,-591.69826684,0.00016438,2]
[402118568,1768529438287,-591.69826684,0.00016438,2]
[402118569,1768529438297,-591.69826684,0.00016438,2]
[402118570,1768529438306,-591.69826684,0.00016438,2]
[402118571,1768529438315,-591.69826684,0.00016438,2]
[402118572,1768529438324,-591.69826684,0.00016438,2]
[402118573,1768529438333,-591.69826684,0.00016438,2]
[402118574,1768529438341,-591.69826684,0.00016438,2]
[402118575,1768529438350,-591.69826684,0.00016438,2]
[402118576,1768529438359,-591.69826684,0.00016438,2]
[402118577,1768529438368,-591.69826684,0.00016438,2]
[402118578,1768529438377,-591.69826684,0.00016438,2]
[402118579,1768529438386,-591.69826684,0.00016438,2]
[402118580,1768529438396,-591.69826684,0.00016438,2]
[402118581,1768529438405,-591.69826684,0.00016438,2]
[402118582,1768529438414,-591.69826684,0.00016438,2]
[402118583,1768529438424,-591.69826684,0.00016438,2]
[402118584,1768529438433,-591.69826684,0.00016438,2]
[402118585,1768529438442,-591.69826684,0.00016438,2]
[402118586,1768529438452,-591.69826684,0.00016438,2]
[402118587,1768529438462,-591.69826684,0.00016438,2]
[402118588,1768529438471,-591.69826684,0.00016438,2]